Cogmind - Beta 13 @@@ ROGUE MODE // 2024.04.01 @ 23:11:52 Player: lexi =3 Result: Destroyed by G-47 Trooper with Particle Gun Performance ------------- Evolutions (0) 0 Regions Visited (2) 400 Robots Destroyed (5) 25 Value Destroyed (139) 139 Prototype IDs (0) 0 Alien Tech Used (0) 0 Bonus (0) 0 TOTAL SCORE: 564 Bonus ------- None Cogmind --------- Core Integrity 0/250 Matter 290/300 Energy 100/100 System Corruption 0% Temperature Cool (9) Movement Walking (400) Ox4 Location -10/Mines Parts ------- > --- POWER (1) -------- (None) > --- PROPULSION (2) --- Aluminum Leg > --- UTILITY (2) ------ High-capacity Storage Unit Improved Terrain Scanner > --- WEAPON (2) ------- Particle Gun > --- INVENTORY (20) --- Light Ion Engine Heat Sink Peak State ------------ > --- POWER ------------ Light Nuclear Core > --- PROPULSION ------- Aluminum Leg Aluminum Leg > --- UTILITY ---------- High-capacity Storage Unit Improved Terrain Scanner > --- WEAPON ----------- Particle Gun Assault Rifle > --- INVENTORY -------- Light Ion Engine Aluminum Leg Heat Sink [Rating: 12] Favorites ----------- Power Light Ion Engine Engine Light Ion Engine Power Core Light Nuclear Core Propulsion Aluminum Leg Leg Aluminum Leg Utility Heat Sink Device Heat Sink Storage High-capacity Storage Unit Weapon Assault Rifle Energy Gun Particle Gun Ballistic Gun Assault Rifle Build | -11 -10 -10 ------- Run | Yrd Mat Min Slots Evolved . | . . . Power . | . . . Propulsion . | . . . Utility . | . . . Weapon . | . . . Parts Attached 10 | 6 3 1 Power 2 | 1 1 . Engine 1 | 1 . . Core 1 | . 1 . Reactor . | . . . Propulsion 3 | 2 . 1 Treads . | . . . Leg 3 | 2 . 1 Wheel . | . . . Hover . | . . . Flight . | . . . Utility 3 | 2 1 . Device 2 | 2 . . Storage 1 | . 1 . Processor . | . . . Hackware . | . . . Protection . | . . . Artifact . | . . . Weapon 2 | 1 1 . Energy Gun 1 | . 1 . Energy Cannon . | . . . Ballistic Gun 1 | 1 . . Ballistic Cannon . | . . . Launcher . | . . . Special Weapon . | . . . Impact Weapon . | . . . Slashing Weapon . | . . . Piercing Weapon . | . . . Special Melee Weapon . | . . . Unidentified Prototypes . | . . . Parts Lost 5 | . 2 3 Power 2 | . 1 1 Propulsion 2 | . . 2 Utility . | . . . Weapon 1 | . 1 . Highest Loss Streak 3 | . 1 3 To Critical Strikes . | . . . Average Slot Usage (%) 84 | . 83 84 Engine 1 | . 5 . Core 11 | . 7 13 Leg 27 | . 28 27 Device 14 | . 15 14 Storage 13 | . 12 14 Energy Gun 10 | . . 14 Ballistic Gun 3 | . 13 . Naked Turns . | . . . Heaviest Build 51 | 7 51 49 Greatest Support 20 | 20 20 20 Greatest Overweight (x) 4 | . 2 4 Average Overweight (x) . | . 1 2 Largest Inventory Capacity 20 | 5 20 20 Average Capacity 6 | 5 18 20 Most Carried 5 | 2 5 3 Average Carried 1 | 1 3 2 Final Capacity 20 | 5 20 20 Final Carried 3 | 2 3 2 Class Distribution -------------------- 100% | Mutant Dominant Class ---------------- Mutant | -10/Materials Mutant | -10/Mines Resources | -11 -10 -10 ----------- Run | Yrd Mat Min Matter Collected 377 | 308 69 . Remotely . | . . . Salvage Created 192 | 92 100 . Parts 12 | 8 4 . Haulers Intercepted . | . . . Recyclers Shooed . | . . . Parts Field Recycled . | . . . Retrieved Matter . | . . . Parts Self-Destructed . | . . . Prevented . | . . . Kills | -11 -10 -10 ------- Run | Yrd Mat Min Combat Hostiles Destroyed 3 | 1 2 . Guns 3 | 1 2 . Classes Destroyed 2 | 2 . . Tunneler 2 | 2 . . Grunt 3 | 1 2 . Best Kill Streak 2 | 1 2 . Combat Bots Only 2 | 1 2 . Max Kills in Single Turn 1 | 1 1 . Gunslinging . | . . . Exploded . | . . . Melee . | . . . Uniques/NPCs Destroyed . | . . . Combat | -11 -10 -10 -------- Run | Yrd Mat Min Hostile Shots Fired 81 | 9 45 27 Missed 19 | 3 12 4 Damage Taken 832 | 66 432 334 Core 261 | 44 121 96 Absorbed by Shields . | . . . Core Remaining (%) 82 | 82 . . Volleys Fired 36 | 16 18 2 Largest 1 | 1 1 1 Hottest 65 | 20 20 65 Shots Fired 36 | 16 18 2 Gun 36 | 16 18 2 Cannon . | . . . Launcher . | . . . Special . | . . . Kinetic 34 | 16 18 . Thermal 2 | . . 2 Explosive . | . . . Electromagnetic . | . . . Robot Hit Streak 16 | 8 16 1 Robot Miss Streak 3 | 2 3 . Penetration Max . | . . . Secondary Targets . | . . . Shots Hit Robots 27 | 12 14 1 Core Hits 10 | 4 5 1 Critical Kills . | . . . Critical Parts Destroyed . | . . . Critical Strikes . | . . . Melee Attacks . | . . . Impact . | . . . Slashing . | . . . Piercing . | . . . Sneak Attacks . | . . . Combat Hostiles . | . . . Follow-up Attacks . | . . . Damage Inflicted 338 | 143 181 14 Guns 337 | 143 181 13 Cannons . | . . . Explosions . | . . . Melee . | . . . Ramming 1 | . . 1 Kinetic 324 | 143 181 . Thermal 13 | . . 13 Explosive . | . . . Electromagnetic . | . . . Impact . | . . . Slashing . | . . . Piercing . | . . . Highest Corruption . | . . . Average Corruption . | . . . Corruption Purged . | . . . Corruption Blocked . | . . . Overload Shots . | . . . Overflow Damage . | . . . Projectiles . | . . . Explosions . | . . . Melee . | . . . Knockbacks . | . . . Impact . | . . . Kinetic . | . . . Secondary . | . . . Self-Inflicted Damage . | . . . Shots . | . . . Rammed . | . . . Targets Rammed 3 | . . 3 Kicked 3 | . . 3 Crushed . | . . . Highest Temperature 37 | . 11 37 Average Temperature 12 | . 5 18 Received Heat Transfer 528 | 36 288 204 Siege Activations . | . . . Robots Corrupted . | . . . Combat Hostiles . | . . . Parts Fried . | . . . Impact Corruptions . | . . . Robots Melted . | . . . Combat Hostiles . | . . . Parts Melted . | . . . Heat Transferred 37 | . . 37 Parts Sabotaged . | . . . Parts Stolen . | . . . Parts Stripped . | . . . Power Chain Reactions . | . . . Alert | -11 -10 -10 ------- Run | Yrd Mat Min Peak Influence 65 | 20 65 21 Initial 21 | . . 21 Average 4 | 1 38 15 Maximum Alert Level . | . . . Low Security (%) 100 | 100 100 100 Level 1 . | . . . Level 2 . | . . . Level 3 . | . . . Level 4 . | . . . Level 5 . | . . . High Security . | . . . Max Security . | . . . Squads Dispatched 2 | . 2 . Investigation 1 | . 1 . Extermination . | . . . Reinforcement 1 | . 1 . Assault . | . . . Garrison . | . . . Intercept . | . . . Searches Triggered . | . . . Construction Impeded . | . . . Haulers Reinforced . | . . . Active Scanning Responses . | . . . Cargo Convoy Interrupts . | . . . Stealth | -11 -10 -10 --------- Run | Yrd Mat Min Distress Signals . | . . . Communications Jammed . | . . . Distress Signals . | . . . Times Spotted 10 | 1 7 2 Peak Tracking Total 3 | 1 3 2 Tactical Retreats 1 | . 1 . Traps | -11 -10 -10 ------- Run | Yrd Mat Min Traps Triggered . | . . . Indirectly . | . . . Trap Hack Attempts . | . . . Triggered . | . . . Disarmed . | . . . Reprogrammed . | . . . Reused . | . . . Traps Extracted . | . . . Installed . | . . . Triggered . | . . . Machines | -11 -10 -10 ---------- Run | Yrd Mat Min Machines Disabled 1 | . . 1 Max in Single Turn 1 | . . 1 Machines Repaired . | . . . Machines Dismantled . | . . . Machines Sabotaged . | . . . Overloaded Fab Kills . | . . . Hacking | -11 -10 -10 --------- Run | Yrd Mat Min Machines Accessed . | . . . Terminals . | . . . Fabricators . | . . . Repair Stations . | . . . Recycling Units . | . . . Scanalyzers . | . . . Garrison Access . | . . . Total Hacks . | . . . Successful . | . . . Failed . | . . . Catastrophic . | . . . Database Lockouts . | . . . Manual . | . . . Terminals . | . . . Fabricators . | . . . Repair Stations . | . . . Recycling Units . | . . . Scanalyzers . | . . . Garrison Access . | . . . Terminal Hacks . | . . . Fabricator Hacks . | . . . Repair Station Hacks . | . . . Recycling Unit Hacks . | . . . Scanalyzer . | . . . Garrison Access Hacks . | . . . Unauthorized Hacks . | . . . Terminals . | . . . Fabricators . | . . . Repair Stations . | . . . Recycling Units . | . . . Scanalyzers . | . . . Garrison Access . | . . . Data Cores Recovered . | . . . Used . | . . . Hacking Detections . | . . . Full Trace Events . | . . . Feedback Events . | . . . Feedback Blocked . | . . . Robot Schematics Acquired . | . . . Robots Built . | . . . Authchips . | . . . Time . | . . . Total Robot Build Rating . | . . . Part Schematics Acquired . | . . . Parts Built . | . . . Authchips . | . . . Time . | . . . Total Part Build Rating . | . . . Parts Repaired . | . . . Time . | . . . Parts Recycled . | . . . Recycled Matter . | . . . Retrieved Matter . | . . . Retrieved Components . | . . . Parts Scanalyzed . | . . . Part Schematics Acquired . | . . . Parts Damaged . | . . . Bothacking | -11 -10 -10 ------------ Run | Yrd Mat Min Used RIF Installer . | . . . Robots Hacked . | . . . Non-combat . | . . . Combat . | . . . Robot Hacks Applied . | . . . Relay Couplers Released . | . . . Fabnet Peak Effective % . | . . . Robots Rewired . | . . . Allies Hacked . | . . . Hacks Repelled . | . . . Allies | -11 -10 -10 -------- Run | Yrd Mat Min Total Allies . | . . . Largest Group . | . . . Highest-Rated Group . | . . . Highest-Rated Ally . | . . . Total Orders . | . . . Ally Attacks . | . . . Total Damage . | . . . Kills . | . . . Allies Corrupted . | . . . Allies Melted . | . . . Intel | -11 -10 -10 ------- Run | Yrd Mat Min Robot Analysis Total . | . . . Derelict Logs Recovered . | . . . Drone Launches . | . . . Drone Recoveries . | . . . Exploration | -11 -10 -10 ------------- Run | Yrd Mat Min Turns Passed 6198 | 5456 192 550 Spaces Moved 1489 | 1223 63 203 Core 36 | 36 . . Treads . | . . . Legs 1453 | 1187 63 203 Wheels . | . . . Hover . | . . . Flight . | . . . Fastest Speed 50 | 50 120 260 Average Speed 142 | 117 235 262 Slowest Speed 400 | 120 260 400 Overloaded Moves . | . . . Propulsion Burnouts . | . . . Robots Hopped . | . . . Cave-ins Triggered . | . . . Exploration Rate (%) 47 | 81 15 46 Regions Visited 2 Branch Regions 1 Pre-discovered Areas . | . . . Known Exits Taken . | . . . Unknown Exits Taken 2 | 1 1 . Scrap Searched 1 | . . 1 Spaces Dug . | . . . Terrain Destroyed . | . . . Melee . | . . . Projectile . | . . . AOE . | . . . Terrain Rammed . | . . . Walls Destroyed . | . . . Machines Disabled . | . . . Actions | -11 -10 -10 --------- Run | Yrd Mat Min Total 5523 | 5220 90 213 Wait 3975 | 3968 3 4 Move 1487 | 1222 62 203 Hop . | . . . Pick Up 11 | 8 3 . Fast Attach . | . . . Attach 10 | 6 3 1 Detach 1 | . 1 . Swap . | . . . Drop . | . . . Fire 36 | 16 18 2 Melee . | . . . Ram . | . . . Kick 3 | . . 3 Crush . | . . . Escape Stasis . | . . . Rewire . | . . . Trap . | . . . Miscellaneous . | . . . Route ------- -11/Scrapyard -10/Materials -10/Mines (discovered 2 exits: [*Mat x2]) History --------- Turn | Location | Event 2 | -11/Scrapyard | Met Revision 17 63 | -11/Scrapyard | Discovered new exit (range 8) 5457 | -11/Scrapyard | Entered Materials 5458 | -10/Materials | Build established: Mutant 5536 | -10/Materials | Core integrity fell below 50% 5538 | -10/Materials | Met 8R-AWN 5585 | -10/Materials | Discovered new exit (range 16) 5649 | -10/Materials | Entered Mines 5652 | -10/Mines | Followed 8R-AWN into the Mines 5805 | -10/Mines | Discovered new exit (range 16) 5812 | -10/Mines | Discovered new exit (range 16) 6172 | -10/Mines | Core integrity fell below 20% 6199 | -10/Mines | Destroyed by G-47 Trooper with Particle Gun Last Messages --------------- Searching scrap... Found Grenade Launcher. Found Datajack. Found Grenade Launcher. Found Huge Storage Unit. Found 29 Matter. Kicked U-05 Engineer. T-07 Excavator is excavating. U-05 Engineer builds a Wall. T-07 Excavator is excavating. U-05 Engineer lays Concrete. Laser Drill disabled. Lgt. Nuclear Core destroyed. K-01 Serf collects debris. Aluminum Leg destroyed. K-01 Serf collects debris. Aluminum Leg destroyed. K-01 Serf collects debris. Laser Drill disabled. Critical hit (Burn: +37). Map ----- +----------------------------------------------------+ | | | | | | | | | | | #???????????????????????????????#????????????????? | | ???????##????????????????????????????????????????? | | ????#??????#????#????????????????????????????????? | | ?????????????????????????????????????????????????? | | ??????????????????????????????????????##??#??????? | | ???#?#????????????????#??#???????????????????????? | | ??????????????????#??????????????????????????????? | | ?#?????#?????#????#???????????????????##???#?????? | | ???????????####???#???????????????#??????????#???? | | ??#???????# #??##??#???????????????????????????? | | ????????#### #?????#############?????#??????????? | | ???####?## ##????# #????????????????? | | ??## ### ##?#?# #???????????????#? | | ??# #??## """ """ ########?????????? | | ??# #?#?# """ "" #?????????? | | ?# ####?# """ """ ##### #?????????? | | # ### ####???# g #???# #???? ????? | | # ##?# ###??????# """ #???# #?????????? | | ## #?## #???#??### """ #???# #?????????? | | ?# ### #??#?#???# < " " #???# #?#???????? | | ?# #???#????# @ g #???# #??#? ????? | | # ### #??????###############?#?# #???????#?? | | # #??# #?#?#??##????#??????????## #?????????? | | # ???# #????#??##??#???????????## #????##???? | | # ##?# ########?????###??????#??# #?????????? | | #??# % #?#???????????????# #??#?#????? | | #???######## #??#??#??????#??#?# ##????????? | | # #??#????#???# #???#?###???####?## #?????????? | | ?####?########### #??????#?????????## #?????????? | | ?#????# ]]!%/ ######???#?????### #?????????# | | ?????## ######### #??#???#???## #??????#??? | | ????? ?????########## #??###???### #??#??????? | | ???##? ?#?## ##?#?# ##?####### #??????#??? | | ?????#????# ##### #### #???#?????? | | #??????#?## % ### ??? | | ???????### ########### #?# ## ######????? | | ??###### #######???# #?## #### #??#??????? | | ??# ## #???# ?####??# #??#?#?#?? | | ??# # #???# #?????# #???????? | | ??## ### #???# ??????# #???????? | | ???## #??## ##??## ?? ????# ##??#????? | | ????## ?#??## #????### ??????###????????? | | ?????# ? ??#?## #???????# ?????????????????? | | ?????##????#???## ##???????# ????????????????? | | ???????#???#???## #????????? ?